fUSD/lending_fUSD_20240428
["ID","MTS","AMOUNT","RATE_DAILY","PERIOD"]
[30393,1714330307286,-500.0,0.00012602,2]
[30395,1714330307305,-500.0,0.00012602,2]
[30397,1714330307324,-500.0,0.00012602,2]
[30399,1714330307344,-6992.63,0.00012602,2]
[30401,1714330307363,-3131.96,0.00012602,2]
[30403,1714330307383,-932.64,0.00012602,2]
[30405,1714330307401,-11427.79,0.00012602,2]
[30407,1714330307421,-2573.34,0.00012602,2]
[30409,1714330307441,-620.52,0.00012602,2]
[30411,1714330307461,-500.0,0.00012602,2]
[30413,1714330307480,-4086.19,0.00012602,2]
[30415,1714330307499,-771.96,0.00012602,2]
[30417,1714330307518,-717.59,0.00012602,2]
[30419,1714330307538,-1340.05,0.00012602,2]
[30421,1714330307556,-444.58189765,0.00012602,2]
[30423,1714330307575,-500.0,0.00012602,2]
[30424,1714330307584,-500.0,0.00012602,2]
[30425,1714330307594,-500.0,0.00012602,2]
[30427,1714330307614,-394.72599646,0.00012602,2]
[30429,1714330307633,-500.0,0.00012602,2]
[30431,1714330307652,-500.0,0.00012602,2]
[30433,1714330307671,-699.87,0.00012602,2]
[30435,1714330307691,-500.0,0.00012602,2]
[30437,1714330307710,-512.45,0.00012602,2]
[30439,1714330307729,-551.74,0.00012602,2]
[30441,1714330307749,-1268.89,0.00012602,2]
[30443,1714330307771,-895.36,0.00012602,2]
[30444,1714330307780,-500.0,0.00012602,2]
[30445,1714330307789,-1322.88,0.00012602,2]
[30447,1714330307807,-958.48,0.00012602,2]
[30448,1714330307817,-500.0,0.00012602,2]
[30449,1714330307827,-3573.43,0.00012602,2]
[30450,1714330307836,-620.34,0.00012602,2]
[30451,1714330307846,-16792.48,0.00012602,2]
[30452,1714330307855,-2082.17,0.00012602,2]
[30453,1714330307865,-500.0,0.00012602,2]
[30455,1714330307883,-1111.15,0.00012602,2]
[30456,1714330307893,-513.62,0.00012602,2]
[30457,1714330307902,-1109.42,0.00012602,2]
[30458,1714330307912,-825.67,0.00012668,2]
[30459,1714330307921,-167.61839961,0.00012685,2]
[30460,1714330307944,-400.0,0.00012771,2]
[30461,1714330307953,-500.0,0.00012876,2]
[30462,1714330307963,-500.0,0.00012876,2]
[30463,1714330307973,-500.0,0.00012876,2]
[30464,1714330307983,-651.26,0.00012876,2]
[30465,1714330307993,-500.0,0.00012876,2]
[30466,1714330308003,-500.0,0.00012876,2]
[30467,1714330308013,-500.0,0.00012876,2]
[30468,1714330308032,-507.17,0.00012876,2]
[30469,1714330308050,-537.29,0.00012876,2]
[30470,1714330308059,-500.0,0.00012876,2]
[30471,1714330308069,-500.0,0.00012876,2]
[30472,1714330308082,-500.0,0.00012876,2]
[30473,1714330308092,-628.31,0.00012876,2]
[30474,1714330308102,-500.0,0.00012876,2]
[30475,1714330308113,-511.57,0.00012876,2]
[30476,1714330308122,-500.0,0.00012876,2]
[30477,1714330308132,-500.0,0.00012876,2]
[30478,1714330308141,-500.0,0.00012876,2]
[30479,1714330308150,-500.0,0.00012876,2]
[30480,1714330308160,-634.32,0.00012876,2]
[30481,1714330308169,-500.0,0.00012876,2]
[30482,1714330308177,-500.0,0.00012876,2]
[30483,1714330308188,-500.0,0.00012876,2]
[30484,1714330308196,-500.0,0.00012876,2]
[30485,1714330308206,-500.0,0.00012876,2]
[30486,1714330308215,-500.0,0.00012876,2]
[30487,1714330308224,-500.0,0.00012876,2]
[30488,1714330308233,-500.0,0.00012876,2]
[30489,1714330308242,-500.0,0.00012876,2]
[30490,1714330308251,-538.62313357,0.00012876,2]
[30491,1714330308259,-803.34,0.00012876,2]
[30493,1714330308278,-166.1,0.00012876,2]
[30495,1714330308296,-500.0,0.00012876,2]
[30497,1714330308314,-500.0,0.00012876,2]
[30499,1714330308332,-500.0,0.00012876,2]
[30501,1714330308351,-500.0,0.00012876,2]
[30502,1714330308360,-500.0,0.00012876,2]
[30503,1714330308369,-500.0,0.00012876,2]
[30505,1714330308388,-500.0,0.00012876,2]
[30507,1714330308406,-500.0,0.00012876,2]
[30509,1714330308424,-500.0,0.00012876,2]
[30511,1714330308443,-500.0,0.00012876,2]
[30513,1714330308461,-544.72002111,0.00012876,2]
[30515,1714330308479,-579.42,0.00012876,2]
[30517,1714330308497,-500.0,0.00012876,2]
[30519,1714330308516,-500.0,0.00012876,2]
[30520,1714330308526,-500.0,0.00012876,2]
[30521,1714330308535,-500.0,0.00012876,2]
[30523,1714330308553,-500.0,0.00012876,2]
[30524,1714330308563,-710.83,0.00012876,2]
[30525,1714330308572,-500.0,0.00012876,2]
[30526,1714330308581,-670.97,0.00012876,2]
[30527,1714330308590,-574.14,0.00012876,2]
[30528,1714330308599,-500.0,0.00012876,2]
[30529,1714330308609,-500.0,0.00012876,2]
[30530,1714330308619,-500.0,0.00012876,2]
[30531,1714330308629,-559.25,0.00012876,2]
[30532,1714330308638,-743.81,0.00012876,2]
[30533,1714330308647,-285.17368071,0.00012876,2]
[30535,1714330308666,-516.06,0.00012876,2]
[30537,1714330308684,-500.0,0.00012876,2]
[30539,1714330308703,-500.0,0.00012876,2]
[30541,1714330308721,-687.24,0.00012876,2]
[30543,1714330308740,-827.3,0.00012876,2]
[30545,1714330308758,-1034.79,0.00012876,2]
[30547,1714330308778,-500.0,0.00012876,2]
[30549,1714330308796,-500.0,0.00012876,2]
[30551,1714330308814,-500.0,0.00012876,2]
[30552,1714330308823,-500.0,0.00012876,2]
[30553,1714330308832,-680.4,0.00012876,2]
[30554,1714330308841,-500.0,0.00012876,2]
[30555,1714330308850,-639.49,0.00012876,2]
[30557,1714330308869,-1173.43,0.00012876,2]
[30559,1714330308889,-500.0,0.00012876,2]
[30561,1714330308907,-675.25,0.00012876,2]
[30563,1714330308925,-669.91,0.00012876,2]
[30565,1714330308943,-1056.57,0.00012876,2]
[30567,1714330308961,-500.0,0.00012876,2]
[30568,1714330308970,-500.0,0.00012876,2]
[30569,1714330308980,-506.77,0.00012876,2]
[30571,1714330308997,-1209.36,0.00012876,2]
[30573,1714330309016,-500.0,0.00012876,2]
[30575,1714330309039,-816.19,0.00012876,2]
[30577,1714330309060,-544.53,0.00012876,2]
[30578,1714330309070,-1155.93,0.00012876,2]
[30579,1714330309079,-500.0,0.00012876,2]
[30580,1714330309088,-500.0,0.00012876,2]
[30581,1714330309097,-500.0,0.00012876,2]
[30583,1714330309116,-500.0,0.00012876,2]
[30585,1714330309134,-500.0,0.00012876,2]
[30587,1714330309152,-500.0,0.00012876,2]
[30589,1714330309170,-500.0,0.00012876,2]
[30591,1714330309188,-544.68,0.00012876,2]
[30593,1714330309205,-769.66,0.00012876,2]
[30595,1714330309223,-712.62,0.00012876,2]
[30597,1714330309241,-500.0,0.00012876,2]
[30599,1714330309259,-500.0,0.00012876,2]
[30601,1714330309277,-733.62,0.00012876,2]
[30603,1714330309295,-1047.14,0.00012876,2]
[30605,1714330309313,-500.0,0.00012876,2]
[30607,1714330309331,-676.85,0.00012876,2]
[30609,1714330309349,-524.61,0.00012876,2]
[30611,1714330309366,-500.0,0.00012876,2]
[30613,1714330309384,-500.0,0.00012876,2]
[30615,1714330309402,-500.0,0.00012876,2]
[30617,1714330309420,-797.7,0.00012876,2]
[30619,1714330309438,-556.53,0.00012876,2]
[30621,1714330309456,-500.0,0.00012876,2]
[30623,1714330309474,-826.94,0.00012876,2]
[30625,1714330309491,-576.86,0.00012876,2]
[30627,1714330309510,-603.04,0.00012876,2]
[30629,1714330309528,-500.0,0.00012876,2]
[30630,1714330309537,-619.83,0.00012876,2]
[30631,1714330309546,-668.47,0.00012876,2]
[30633,1714330309564,-540.35,0.00012876,2]
[30635,1714330309582,-552.37,0.00012876,2]
[30637,1714330309600,-688.29,0.00012876,2]
[30639,1714330309620,-772.02,0.00012876,2]
[30641,1714330309639,-500.0,0.00012876,2]
[30642,1714330309648,-500.0,0.00012876,2]
[30643,1714330309657,-500.0,0.00012876,2]
[30644,1714330309668,-687.45,0.00012876,2]
[30645,1714330309677,-500.0,0.00012876,2]
[30646,1714330309688,-1218.19,0.00012876,2]
[30647,1714330309697,-550.18,0.00012876,2]
[30649,1714330309716,-500.0,0.00012876,2]
[30651,1714330309735,-690.83,0.00012876,2]
[30653,1714330309754,-720.48,0.00012876,2]
[30655,1714330309772,-500.0,0.00012876,2]
[30657,1714330309789,-500.0,0.00012876,2]
[30659,1714330309808,-500.0,0.00012876,2]
[30661,1714330309828,-500.0,0.00012876,2]
[30663,1714330309847,-665.55,0.00012876,2]
[30665,1714330309867,-500.0,0.00012876,2]
[30667,1714330309886,-1257.71,0.00012876,2]
[30669,1714330309904,-686.89,0.00012876,2]
[30671,1714330309923,-500.0,0.00012876,2]
[30673,1714330309945,-500.0,0.00012876,2]
[30675,1714330309965,-534.16,0.00012876,2]
[30677,1714330309984,-500.0,0.00012876,2]
[30679,1714330310003,-500.0,0.00012876,2]
[30681,1714330310027,-500.0,0.00012876,2]
[30683,1714330310203,-584.65,0.00012876,2]
[30685,1714330310224,-500.0,0.00012876,2]
[30687,1714330310243,-500.0,0.00012876,2]
[30689,1714330310262,-500.0,0.00012876,2]
[30691,1714330310282,-791.19,0.00012876,2]
[30693,1714330310302,-500.0,0.00012876,2]
[30695,1714330310321,-500.0,0.00012876,2]
[30697,1714330310341,-839.0,0.00012876,2]
[30699,1714330310361,-500.0,0.00012876,2]
[30701,1714330310382,-500.0,0.00012876,2]
[30703,1714330310402,-541.84,0.00012876,2]
[30705,1714330310422,-500.0,0.00012876,2]
[30707,1714330310443,-1399.48,0.00012876,2]
[30709,1714330310463,-500.0,0.00012876,2]
[30711,1714330310483,-676.03,0.00012876,2]
[30713,1714330310503,-500.0,0.00012876,2]
[30715,1714330310524,-1253.88,0.00012876,2]
[30717,1714330310544,-500.0,0.00012876,2]
[30719,1714330310564,-500.0,0.00012876,2]
[30721,1714330310584,-217.94118122,0.00012876,2]
[30723,1714330310605,-1411.96,0.00012876,2]
[30725,1714330310625,-735.32,0.00012876,2]
[30727,1714330310645,-500.0,0.00012876,2]
[30729,1714330310665,-770.56,0.00012876,2]
[30731,1714330310684,-500.0,0.00012876,2]
[30733,1714330310705,-584.59,0.00012876,2]
[30735,1714330310726,-500.0,0.00012876,2]
[30737,1714330310746,-500.0,0.00012876,2]
[30738,1714330310756,-399.04598269,0.00012876,2]
[30739,1714330310766,-584.09,0.00012876,2]
[30740,1714330310777,-1772.81,0.00012876,2]
[30741,1714330310786,-716.28,0.00012876,2]
[30742,1714330310796,-500.0,0.00012876,2]
[30743,1714330310806,-500.0,0.00012876,2]
[30744,1714330310816,-505.97,0.00012876,2]
[30745,1714330310825,-500.0,0.00012876,2]
[30747,1714330310845,-500.0,0.00012876,2]
[30749,1714330310865,-531.75,0.00012876,2]
[30751,1714330310885,-514.87,0.00012876,2]
[30753,1714330310905,-500.0,0.00012876,2]
[30755,1714330310925,-668.62,0.00012876,2]
[30757,1714330310945,-464.20648362,0.00012876,2]
[30759,1714330310970,-515.16,0.00012876,2]
[30761,1714330310992,-483.41418034,0.00012876,2]
[30763,1714330311014,-702.37,0.00012876,2]
[30765,1714330311039,-531.2,0.00012876,2]
[30767,1714330311058,-635.02,0.00012876,2]
[30769,1714330311079,-538.67,0.00012876,2]
[30771,1714330311100,-500.0,0.00012876,2]
[30773,1714330311120,-822.42,0.00012876,2]
[30775,1714330311139,-562.77,0.00012876,2]
[30777,1714330311159,-500.0,0.00012876,2]
[30779,1714330311179,-500.0,0.00012876,2]
[30781,1714330311198,-500.0,0.00012876,2]
[30783,1714330311217,-500.0,0.00012876,2]
[30785,1714330311237,-843.09,0.00012876,2]
[30787,1714330311257,-787.21,0.00012876,2]
[30789,1714330311278,-500.0,0.00012876,2]
[30791,1714330311300,-1542.28,0.00012876,2]
[30793,1714330311322,-662.14,0.00012876,2]
[30795,1714330311345,-500.0,0.00012876,2]
[30797,1714330311365,-500.0,0.00012876,2]
[30799,1714330311386,-1706.94,0.00012876,2]
[30801,1714330311405,-529.51,0.00012876,2]
[30803,1714330311424,-500.0,0.00012876,2]
[30805,1714330311443,-682.07,0.00012876,2]
[30807,1714330311462,-1140.53,0.00012876,2]
[30809,1714330311482,-695.53,0.00012876,2]
[30811,1714330311501,-1152.15,0.00012876,2]
[30813,1714330311520,-500.0,0.00012876,2]
[30815,1714330311541,-2448.23,0.00012876,2]
[30816,1714330311551,-505.12931177,0.00012876,2]
[30817,1714330311561,-842.64,0.00012876,2]
[30818,1714330311571,-500.0,0.00012876,2]
[30819,1714330311580,-2964.44,0.00012876,2]
[30821,1714330311601,-722.65,0.00012876,2]
[30822,1714330311612,-630.39,0.00012876,2]
[30823,1714330311622,-500.0,0.00012876,2]
[30825,1714330311643,-500.0,0.00012876,2]
[30827,1714330311662,-4467.12,0.00012876,2]
[30828,1714330311672,-1785.32,0.00012876,2]
[30829,1714330311682,-888.23,0.00012876,2]
[30830,1714330311692,-500.0,0.00012876,2]
[30831,1714330311702,-500.0,0.00012876,2]
[30832,1714330311712,-500.0,0.00012876,2]
[30833,1714330311721,-1296.75,0.00012876,2]
[30834,1714330311731,-500.0,0.00012876,2]
[30835,1714330311741,-512.49,0.00012876,2]
[30836,1714330311752,-704.62,0.00012876,2]
[30837,1714330311762,-500.0,0.00012876,2]
[30838,1714330311774,-500.0,0.00012876,2]
[30839,1714330311784,-1022.85,0.00012876,2]
[30840,1714330311795,-1638.46,0.00012876,2]
[30841,1714330311805,-1782.61,0.00012876,2]
[30842,1714330311815,-500.0,0.00012876,2]
[30843,1714330311825,-806.78,0.00012876,2]
[30844,1714330311835,-1933.98,0.00012876,2]
[30845,1714330311845,-500.0,0.00012876,2]
[30846,1714330311855,-994.43,0.00012876,2]
[30847,1714330311866,-500.0,0.00012876,2]
[30848,1714330311876,-500.0,0.00012876,2]
[30849,1714330311886,-500.0,0.00012876,2]
[30851,1714330311907,-8503.81,0.00012876,2]
[30853,1714330311926,-967.86,0.00012876,2]
[30855,1714330311947,-500.0,0.00012876,2]
[30857,1714330311966,-683.75,0.00012876,2]
[30859,1714330311986,-500.0,0.00012876,2]
[30861,1714330312006,-622.31,0.00012876,2]
[30863,1714330312030,-6456.44,0.00012876,2]
[30865,1714330312050,-500.0,0.00012876,2]
[30867,1714330312071,-1693.66,0.00012876,2]
[30869,1714330312091,-500.0,0.00012876,2]
[30871,1714330312114,-16972.06,0.00012876,2]
[30873,1714330312134,-660.46,0.00012876,2]
[30875,1714330312153,-542.43,0.00012876,2]
[30877,1714330312173,-612.11,0.00012876,2]
[30879,1714330312193,-500.0,0.00012876,2]
[30881,1714330312212,-591.63,0.00012876,2]
[30883,1714330312231,-1316.83,0.00012876,2]
[30885,1714330312251,-582.37,0.00012876,2]
[30887,1714330312269,-500.0,0.00012876,2]
[30889,1714330312290,-655.6,0.00012876,2]
[30891,1714330312309,-704.88,0.00012876,2]
[30893,1714330312329,-500.0,0.00012876,2]
[30895,1714330312349,-500.0,0.00012876,2]
[30897,1714330312369,-6158.42,0.00012876,2]
[30899,1714330312390,-500.0,0.00012876,2]
[30901,1714330312409,-1260.17,0.00012876,2]
[30903,1714330312779,-1438.07,0.00012876,2]
[30905,1714330312798,-500.0,0.00012876,2]
[30907,1714330312818,-777.16,0.00012876,2]
[30909,1714330312837,-500.0,0.00012876,2]
[30911,1714330312857,-1248.29,0.00012876,2]
[30913,1714330312876,-744.54,0.00012876,2]
[30915,1714330312896,-11159.23,0.00012876,2]
[30917,1714330312916,-1147.86,0.00012876,2]
[30919,1714330312935,-500.0,0.00012876,2]
[30921,1714330312954,-500.0,0.00012876,2]
[30923,1714330312972,-566.98,0.00012876,2]
[30925,1714330312992,-500.0,0.00012876,2]
[30926,1714330313001,-500.0,0.00012876,2]
[30927,1714330313011,-500.0,0.00012876,2]
[30929,1714330313033,-3560.38,0.00012876,2]
[30930,1714330313042,-500.0,0.00012876,2]
[30931,1714330313052,-500.0,0.00012876,2]
[30932,1714330313062,-989.16,0.00012876,2]
[30933,1714330313071,-1778.2,0.00012876,2]
[30934,1714330313080,-3094.17,0.00012876,2]
[30935,1714330313089,-880.71,0.00012876,2]
[30937,1714330313110,-1623.82,0.00012876,2]
[30939,1714330313128,-500.0,0.00012876,2]
[30941,1714330313147,-500.0,0.00012876,2]
[30943,1714330313165,-500.0,0.00012876,2]
[30945,1714330313184,-980.3,0.00012876,2]
[30946,1714330313193,-6396.01,0.00012876,2]
[30947,1714330313203,-27117.26,0.00012876,2]
[30949,1714330313222,-500.0,0.00012876,2]
[30951,1714330313242,-5031.92,0.00012876,2]
[30953,1714330313262,-500.0,0.00012876,2]
[30955,1714330313282,-1382.69,0.00012876,2]
[30957,1714330313300,-500.0,0.00012876,2]
[30959,1714330313319,-500.0,0.00012876,2]
[30961,1714330313338,-500.0,0.00012876,2]
[30963,1714330313358,-369.89484272,0.00012876,2]
[30965,1714330313376,-560.3,0.00012876,2]
[30967,1714330313396,-500.0,0.00012876,2]
[30969,1714330313416,-1137.44,0.00012876,2]
[30971,1714330313435,-500.0,0.00012876,2]
[30972,1714330313445,-500.0,0.00012876,2]
[30973,1714330313454,-627.57,0.00012876,2]
[30975,1714330313474,-1555.52,0.00012876,2]
[30977,1714330313494,-500.0,0.00012876,2]
[30979,1714330313514,-806.45,0.00012876,2]
[30981,1714330313533,-998.64,0.00012876,2]
[30983,1714330313553,-989.1,0.00012876,2]
[30985,1714330313571,-500.0,0.00012876,2]
[30987,1714330313590,-1331.56,0.00012876,2]
[30989,1714330313611,-1854.45,0.00012876,2]
[30991,1714330313635,-500.0,0.00012876,2]
[30993,1714330313654,-500.0,0.00012876,2]
[30994,1714330313664,-2492.61,0.00012876,2]
[30995,1714330313674,-612.09,0.00012876,2]
[30997,1714330313694,-860.94,0.00012876,2]
[30999,1714330313713,-500.0,0.00012876,2]
[31000,1714330313722,-1412.81,0.00012876,2]
[31001,1714330313731,-500.0,0.00012876,2]
[31002,1714330313740,-511.53,0.00012876,2]
[31003,1714330313750,-500.0,0.00012876,2]
[31004,1714330313760,-599.7,0.00012876,2]
[31005,1714330313770,-1106.23,0.00012876,2]
[31007,1714330313792,-1554.35,0.00012876,2]
[31009,1714330313811,-2035.77,0.00012876,2]
[31011,1714330313832,-823.89,0.00012876,2]
[31013,1714330313852,-553.32,0.00012876,2]
[31014,1714330313862,-946.18,0.00012876,2]
[31015,1714330313872,-500.0,0.00012876,2]
[31016,1714330313882,-503.08321852,0.00012876,2]
[31017,1714330313891,-1712.91,0.00012876,2]
[31019,1714330313911,-500.0,0.00012876,2]
[31021,1714330313930,-500.0,0.00012876,2]
[31023,1714330313949,-500.0,0.00012876,2]
[31025,1714330313969,-500.0,0.00012876,2]
[31027,1714330313988,-2953.08,0.00012876,2]
[31029,1714330314008,-660.94,0.00012876,2]
[31031,1714330314031,-500.0,0.00012876,2]
[31033,1714330314051,-500.0,0.00012876,2]
[31035,1714330314071,-1217.61,0.00012876,2]
[31037,1714330314093,-500.0,0.00012876,2]
[31039,1714330314114,-1835.25,0.00012876,2]
[31041,1714330314135,-4086.19,0.00012876,2]
[31043,1714330314154,-717.59,0.00012876,2]
[31045,1714330314173,-1187.88,0.00012876,2]
[31047,1714330314192,-500.0,0.00012876,2]
[31049,1714330314212,-500.0,0.00012876,2]
[31051,1714330314231,-500.0,0.00012876,2]
[31053,1714330314250,-2677.29,0.00012876,2]
[31055,1714330314270,-1904.1,0.00012876,2]
[31057,1714330314289,-699.87,0.00012876,2]
[31059,1714330314308,-500.0,0.00012876,2]
[31061,1714330314327,-512.45,0.00012876,2]
[31063,1714330314345,-551.74,0.00012876,2]
[31065,1714330314363,-1268.89,0.00012876,2]
[31067,1714330314382,-895.36,0.00012876,2]
[31069,1714330314401,-1322.88,0.00012876,2]
[31071,1714330314419,-958.48,0.00012876,2]
[31073,1714330314438,-3573.43,0.00012876,2]
[31075,1714330314456,-2082.17,0.00012876,2]
[31077,1714330314475,-500.0,0.00012876,2]
[31079,1714330314493,-1111.15,0.00012876,2]
[31081,1714330314512,-1109.42,0.00012876,2]
[31083,1714330314531,-35832.29600437,0.00012886,2]
[31085,1714330314550,-200.0,0.00012913,2]
[31087,1714330314569,-16352.6156,0.0001305,2]
[31089,1714330314588,-500.0,0.0001315,2]
[31091,1714330314608,-651.26,0.0001315,2]
[31093,1714330314630,-500.0,0.0001315,2]
[31095,1714330314650,-507.17,0.0001315,2]
[31097,1714330314672,-500.0,0.0001315,2]
[31099,1714330314699,-500.0,0.0001315,2]
[31101,1714330314720,-500.0,0.0001315,2]
[31103,1714330314743,-500.0,0.0001315,2]
[31105,1714330314764,-500.0,0.0001315,2]
[31107,1714330314785,-634.32,0.0001315,2]
[31109,1714330314806,-500.0,0.0001315,2]
[31111,1714330314827,-500.0,0.0001315,2]
[31112,1714330314837,-500.0,0.0001315,2]
[31113,1714330314847,-500.0,0.0001315,2]
[31114,1714330314857,-500.0,0.0001315,2]
[31115,1714330314867,-500.0,0.0001315,2]
[31116,1714330314877,-500.0,0.0001315,2]
[31117,1714330314886,-803.34,0.0001315,2]
[31119,1714330314906,-500.0,0.0001315,2]
[31121,1714330314924,-500.0,0.0001315,2]
[31123,1714330314944,-500.0,0.0001315,2]
[31125,1714330314963,-500.0,0.0001315,2]
[31127,1714330314982,-500.0,0.0001315,2]
[31129,1714330315001,-500.0,0.0001315,2]
[31131,1714330315021,-391.05724634,0.0001315,2]
[31133,1714330315045,-295.64374614,0.0001315,2]
[31135,1714330315063,-500.0,0.0001315,2]
[31136,1714330315074,-500.0,0.0001315,2]
[31137,1714330315084,-500.0,0.0001315,2]
[31139,1714330315104,-579.42,0.0001315,2]
[31141,1714330315126,-169.12394607,0.0001315,2]
[31143,1714330315145,-500.0,0.0001315,2]
[31144,1714330315154,-500.0,0.0001315,2]
[31145,1714330315168,-343.28954234,0.0001315,2]
[31147,1714330315187,-500.0,0.0001315,2]
[31149,1714330315206,-500.0,0.0001315,2]
[31151,1714330315225,-574.14,0.0001315,2]
[31153,1714330315245,-500.0,0.0001315,2]
[31155,1714330315265,-559.25,0.0001315,2]
[31157,1714330315285,-843.61,0.0001315,2]
[31159,1714330315303,-691.7,0.0001315,2]
[31161,1714330315322,-208.93423565,0.0001315,2]
[31163,1714330315341,-671.61,0.0001315,2]
[31165,1714330315360,-777.19,0.0001315,2]
[31166,1714330315369,-827.3,0.0001315,2]
[31167,1714330315379,-514.76,0.0001315,2]
[31169,1714330315398,-500.0,0.0001315,2]
[31170,1714330315407,-500.0,0.0001315,2]
[31171,1714330315416,-648.34,0.0001315,2]
[31173,1714330315435,-500.0,0.0001315,2]
[31175,1714330315454,-680.4,0.0001315,2]
[31177,1714330315473,-639.49,0.0001315,2]
[31179,1714330315492,-1173.43,0.0001315,2]
[31180,1714330315501,-674.07,0.0001315,2]
[31181,1714330315511,-500.0,0.0001315,2]
[31183,1714330315530,-675.25,0.0001315,2]
[31184,1714330315539,-574.83,0.0001315,2]
[31185,1714330315549,-669.91,0.0001315,2]
[31187,1714330315567,-1056.57,0.0001315,2]
[31188,1714330315576,-543.49,0.0001315,2]
[31189,1714330315585,-500.0,0.0001315,2]
[31190,1714330315595,-500.0,0.0001315,2]
[31191,1714330315604,-506.77,0.0001315,2]
[31192,1714330315613,-585.71,0.0001315,2]
[31193,1714330315623,-1209.36,0.0001315,2]
[31195,1714330315642,-500.0,0.0001315,2]
[31196,1714330315651,-791.37,0.0001315,2]
[31197,1714330315660,-816.19,0.0001315,2]
[31199,1714330315678,-544.53,0.0001315,2]
[31201,1714330315697,-500.0,0.0001315,2]
[31203,1714330315716,-500.0,0.0001315,2]
[31205,1714330315735,-500.0,0.0001315,2]
[31207,1714330315754,-500.0,0.0001315,2]
[31209,1714330315772,-500.0,0.0001315,2]
[31211,1714330315791,-500.0,0.0001315,2]
[31212,1714330315800,-500.0,0.0001315,2]
[31213,1714330315810,-544.68,0.0001315,2]
[31214,1714330315820,-732.77,0.0001315,2]
[31215,1714330315830,-769.66,0.0001315,2]
[31217,1714330315849,-500.0,0.0001315,2]
[31219,1714330315868,-500.0,0.0001315,2]
[31221,1714330315887,-500.0,0.0001315,2]
[31223,1714330315907,-733.62,0.0001315,2]